Cogmind - Beta 13 @@@ ROGUE MODE // 2024.04.25 @ 14:39:58 Player: A Moose Result: Destroyed by H-77 Assassin with Coil Gun Performance ------------- Evolutions (7) 3500 Regions Visited (28) 5600 Robots Destroyed (172) 860 Value Destroyed (6377) 6377 Prototype IDs (39) 780 Alien Tech Used (3) 600 Bonus (3524) 3524 TOTAL SCORE: 21241 Bonus ------- Triggered Max Security 1000 High Alert Combat Kills 124 Entered DSFs 500 Aligned with FarCom 300 Met Data Miner 300 Met Zhirov 300 Met Warlord at Base 500 MAIN.C Attacked Warlord 500 Cogmind --------- Core Integrity 0/1300 Matter 300/300 Energy 68/100 System Corruption 7% Temperature Cool (1) Movement Flying (45) Location -3/Quarantine Parts ------- > --- POWER (2) -------- (None) > --- PROPULSION (4) --- Impulse Thruster Array > --- UTILITY (10) ----- Advanced Gravity Neutralizer Advanced Signal Interpreter Makeshift Terrain Scan Processor 0b10 Decoder Chip [Scout] Improved Armor Integrity Analyzer Hacking Suite > --- WEAPON (5) ------- Plasma Flamer > --- INVENTORY (5) ---- Advanced ECM Suite Peak State ------------ > --- POWER ------------ Vortex Chain Reactor > --- PROPULSION ------- Armored Huge Wheel > --- UTILITY ---------- High-capacity Storage Unit Improved Energy Well Improved Signal Interpreter 0b10 Decoder Chip [Scout] Advanced Launcher Guidance Computer Experimental Core Analyzer Remote Force Field Point Defense Array System Guard > --- WEAPON ----------- Heavy Beamcaster Vortex Shotgun Vortex Catalyst Activator > --- INVENTORY -------- Neutrino Core Antimatter Reactor Armored Huge Wheel Armored Huge Wheel Improved Antigrav System Cooled Antigrav System Cooled Antigrav System Advanced Powered Armor Point Defense System Long-range Proton Cannon Disruptor Cannon Dirty Datajack Improved Remote Datajack Improved Plasma Cutter Spear [Rating: 123] Favorites ----------- Power Fission Core Engine Light Angular Momentum Engine Power Core Fission Core Reactor Antimatter Reactor Propulsion Armored Huge Wheel Wheel Armored Huge Wheel Hover Unit Cooled Antigrav System Flight Unit Field Propulsion Array Utility Improved Signal Interpreter Device Improved Cryofiber Web Storage Lightpack 2.0 Processor Improved Signal Interpreter Hackware Hacking Suite Protection Layered Light Armor Plating Weapon Magnetic Acceleration Cannon Energy Gun Vortex Shotgun Energy Cannon Heavy Phase Cannon Ballistic Gun Assault Rifle Ballistic Cannon Magnetic Acceleration Cannon Launcher Heavy Rocket Launcher Special Weapon Molecular Deconstructor Slashing Weapon Power Sword Piercing Weapon Spear Special Melee Weapon Dirty Datajack Build | -11 -10 -10 -10 -9 -8 -7 -7 -7 -7 -6 -6 -6 -6 -5 -5 -5 -5 -5 -5 -5 -4 -4 -4 -4 -4 -3 -3 -3 ------- Run | Yrd Mat Min Exi Min Mat Fac Was Fac DSF Fac Low Low Dat Pro Fac Was Fac Upp Upp War Pro Fac Upp Upp Zhi Pro Res Qua Slots Evolved 14 | . . . . . 4 2 . . . 2 . . . . 2 . . . . . . 2 . . . . 2 . Power 1 | . . . . . . . . . . 1 . . . . . . . . . . . . . . . . . . Propulsion 2 | . . . . . . 1 . . . . . . . . . . . . . . . . . . . . 1 . Utility 8 | . . . . . 4 1 . . . 1 . . . . 1 . . . . . . 1 . . . . . . Weapon 3 | . . . . . . . . . . . . . . . 1 . . . . . . 1 . . . . 1 . Parts Attached 231 | 6 6 2 2 . 18 8 3 4 10 5 5 1 . 24 24 9 10 10 9 14 5 15 5 3 3 1 17 12 Power 27 | 1 1 . . . 3 1 . . 1 1 . . . 2 3 3 1 1 2 1 . 2 . . . . 2 2 Engine 4 | 1 . . . . 2 . . . . . . . . . . . . . 1 . . . . . . . . . Core 13 | . 1 . . . 1 1 . . . 1 . . . 2 1 2 1 1 1 . . 1 . . . . . . Reactor 10 | . . . . . . . . . 1 . . . . . 2 1 . . . 1 . 1 . . . . 2 2 Propulsion 38 | 2 2 2 . . 3 1 . 1 2 2 . . . 2 2 1 1 1 2 5 . 4 . . . . 4 1 Treads . | . . . . . . . . . . . . . . . . . . . . . . . . . . . . . Leg . | . . . . . . . . . . . . . . . . . . . . . . . . . . . . . Wheel 28 | 2 2 2 . . 3 1 . 1 2 2 . . . 2 2 1 1 1 2 3 . 1 . . . . . . Hover 5 | . . . . . . . . . . . . . . . . . . . . 1 . 3 . . . . 1 . Flight 5 | . . . . . . . . . . . . . . . . . . . . 1 . . . . . . 3 1 Utility 90 | 1 2 . 2 . 5 4 1 1 4 2 3 1 . 8 12 3 5 6 2 6 1 2 3 . 3 . 7 6 Device 40 | . . . . . 3 2 1 1 1 1 3 . . 4 4 . 3 2 2 3 1 2 1 . . . 4 2 Storage 10 | 1 1 . 1 . 1 . . . . . . . . . 2 1 1 . . . . . . . 1 . 1 . Processor 13 | . 1 . . . 1 1 . . . . . . . 1 2 1 . 1 . 2 . . 1 . . . 1 1 Hackware 3 | . . . . . . . . . . . . . . . 1 . . . . . . . . . 1 . . 1 Protection 24 | . . . 1 . . 1 . . 3 1 . 1 . 3 3 1 1 3 . 1 . . 1 . 1 . 1 2 Artifact . | . . . . . . . . . . . . . . . . . . . . . . . . . . . . . Weapon 76 | 2 1 . . . 7 2 2 2 3 . 2 . . 12 7 2 3 2 3 2 4 7 2 3 . 1 4 3 Energy Gun 12 | 1 . . . . . . . 1 . . . . . 2 1 1 . . . 1 3 . 1 . . 1 . . Energy Cannon 17 | . . . . . 1 1 1 . . . 2 . . 3 1 . 1 2 . . 1 4 . . . . . . Ballistic Gun 14 | 1 . . . . 4 1 1 . . . . . . 4 1 . . . 1 . . . . . . . 1 . Ballistic Cannon 13 | . . . . . . . . 1 2 . . . . 3 3 . 2 . . . . . . . . . 1 1 Launcher 6 | . 1 . . . 2 . . . . . . . . . . . . . 1 . . 2 . . . . . . Special Weapon 5 | . . . . . . . . . 1 . . . . . . . . . . 1 . . . 1 . . 1 1 Impact Weapon . | . . . . . . . . . . . . . . . . . . . . . . . . . . . . . Slashing Weapon 4 | . . . . . . . . . . . . . . . 1 1 . . 1 . . . . . . . . 1 Piercing Weapon 1 | . . . . . . . . . . . . . . . . . . . . . . . 1 . . . . . Special Melee Weapon 4 | . . . . . . . . . . . . . . . . . . . . . . 1 . 2 . . 1 . Unidentified Prototypes 23 | . . . 1 . 3 . 2 . . . . . . . 1 . . 1 . 7 . 1 . 1 2 1 1 2 Parts Lost 108 | . 4 . . . 8 1 1 . 5 . 2 . . 11 13 8 . 8 4 . 5 11 2 . . 9 9 7 Power 18 | . 1 . . . 3 . . . 1 . . . . 2 2 2 . 1 1 . . 2 1 . . . 1 1 Propulsion 26 | . 2 . . . 3 . 1 . 2 . . . . 2 2 2 . 2 1 . 1 2 . . . 2 2 2 Utility 30 | . . . . . . . . . 1 . 2 . . 5 5 1 . 2 1 . 2 2 . . . 3 4 2 Weapon 34 | . 1 . . . 2 1 . . 1 . . . . 2 4 3 . 3 1 . 2 5 1 . . 4 2 2 Highest Loss Streak 11 | . 2 . . . 5 1 1 . 5 . 2 . . 3 10 7 . 4 3 . 2 11 2 . . 4 3 6 To Critical Strikes . | . . . . . . . . . . . . . . . . . . . . . . . . . . . . . Average Slot Usage (%) 75 | . 91 99 99 100 77 83 81 84 74 72 74 80 66 77 81 76 71 77 69 88 84 72 44 62 68 57 45 57 Core 4 | . 1 14 14 14 5 7 7 7 1 6 6 6 6 9 6 3 4 4 1 . . . . . . . . . Reactor 2 | . . . . . . . . . 4 6 6 6 6 2 3 2 . . . 1 5 4 . . . . 2 2 Wheel 11 | . 27 27 28 28 17 23 21 23 21 12 13 13 13 12 10 8 9 8 7 10 9 4 . . . . . . Hover 1 | . . . . . . . . . . . . . . . . . . . . . . . 10 10 10 8 3 . Device 10 | . . . . . 8 5 15 15 4 6 12 24 20 17 18 20 13 6 10 11 10 8 . 5 5 4 6 4 Storage 7 | . 14 14 14 14 9 7 7 7 7 6 6 6 6 6 4 3 9 11 11 11 11 9 . . . . . 3 Processor 14 | . 12 14 7 . 8 13 7 7 7 6 3 . . 5 6 15 17 22 23 23 29 25 22 26 26 23 20 21 Protection 5 | . . . 5 14 9 9 7 7 11 12 10 7 13 6 4 3 4 5 . 2 . . 4 5 7 5 . 2 Energy Gun 2 | . 11 . . . . . . 5 . . . . . 3 . . . . . 3 13 9 1 1 . 1 . . Energy Cannon 3 | . . . . . 3 6 6 . . . 3 13 . 2 10 3 3 5 5 1 . 6 . . . . . . Ballistic Gun 2 | . 14 14 14 14 12 7 7 7 1 . . . . 2 . . . . 1 3 . . . . . . . 3 Ballistic Cannon 2 | . . . . . . . . 1 12 13 9 . . 5 4 3 4 7 . . . . . . . . . 1 Launcher 1 | . 2 14 14 14 1 . . . . . . . . . . . . . 2 5 1 . . . . . . . Naked Turns . | . . . . . . . . . . . . . . . . . . . . . . . . . . . . . Heaviest Build 124 | 12 30 30 31 31 26 28 28 25 61 75 73 65 47 62 70 71 87 101 76 113 114 124 21 25 20 20 14 38 Greatest Support 50 | 20 26 32 32 32 32 30 30 30 42 40 40 40 40 40 40 38 38 38 38 38 38 50 26 26 26 38 30 46 Greatest Overweight (x) 4 | . 1 1 . . 1 . . . 3 1 1 1 1 1 1 1 2 3 2 4 4 4 . . . . 3 . Average Overweight (x) . | . . . . . . . . . . 1 1 1 1 . 1 . 1 1 1 1 2 2 . . . . . . Largest Inventory Capacity 40 | 8 15 15 15 15 40 40 40 40 40 40 40 40 40 40 40 10 20 20 20 20 20 20 5 5 5 5 5 5 Average Capacity 24 | 7 14 15 15 15 40 40 40 40 40 40 40 40 40 40 35 8 16 20 20 20 20 18 5 5 5 5 5 5 Most Carried 40 | 5 15 15 15 14 30 31 34 39 40 36 37 37 38 38 40 10 20 20 20 20 20 19 5 5 5 5 5 5 Average Carried 20 | 3 12 14 14 14 19 24 32 34 37 33 34 34 38 34 33 8 13 19 17 19 19 15 4 4 4 4 4 4 Final Capacity 40 | 8 15 15 15 15 40 40 40 40 40 40 40 40 40 40 10 5 20 20 20 20 20 5 5 5 5 5 5 5 Final Carried 38 | 5 15 14 14 14 23 31 32 38 37 34 34 38 38 33 10 4 19 17 18 20 18 5 5 5 5 5 5 1 Class Distribution -------------------- 33% | Mutant 28% | Hauler-Mutant 12% | Hauler-Skirmisher 11% | Gunner 3% | Scavenger-Gunner Dominant Class ---------------- Mutant | -10/Materials Mutant | -10/Mines Mutant | -10/Exiles Mutant | -9/Mines Hauler-Skirmisher | -8/Materials Hauler-Mutant | -7/Factory Hauler-Mutant | -7/Waste Hauler-Mutant | -7/Factory Hauler-Mutant | -7/DSF Hauler-Mutant | -6/Factory Hauler-Mutant | -6/Lower Caves Hauler-Mutant | -6/Lower Caves Hauler-Mutant | -6/Data Miner Hauler-Mutant | -5/Proximity Caves Hauler-Skirmisher | -5/Factory Mutant | -5/Waste Mutant | -5/Factory Gunner | -5/Upper Caves Mutant | -5/Upper Caves Gunner | -5/Warlord Scavenger-Gunner | -4/Proximity Caves Gunner | -4/Factory Mutant | -4/Upper Caves Mutant | -4/Upper Caves Mutant | -4/Zhirov Mutant | -3/Proximity Caves Scout | -3/Research Mutant | -3/Quarantine Resources | -11 -10 -10 -10 -9 -8 -7 -7 -7 -7 -6 -6 -6 -6 -5 -5 -5 -5 -5 -5 -5 -4 -4 -4 -4 -4 -3 -3 -3 ----------- Run | Yrd Mat Min Exi Min Mat Fac Was Fac DSF Fac Low Low Dat Pro Fac Was Fac Upp Upp War Pro Fac Upp Upp Zhi Pro Res Qua Matter Collected 5529 | 272 427 . . 64 562 184 . . 114 263 449 136 . 628 854 204 . 157 360 199 91 . 76 74 . 65 19 331 Remotely . | . . . . . . . . . . . . . . . . . . . . . . . . . . . . . Salvage Created 6266 | 95 418 . . 37 985 380 . . 209 62 206 154 . 433 925 602 . 132 288 . 732 368 22 . . . 187 31 Parts 316 | 5 24 . . 6 61 22 . . 12 7 11 6 . 31 47 4 . 6 7 . 30 18 2 . . . 15 2 Haulers Intercepted 4 | . 1 . . . 2 . . . . . . . . . 1 . . . . . . . . . . . . . Recyclers Shooed 2 | . . . . . . . . . . . . . . . 2 . . . . . . . . . . . . . Parts Field Recycled . | . . . . . . . . . . . . . . . . . . . . . . . . . . . . . Retrieved Matter . | . . . . . . . . . . . . . . . . . . . . . . . . . . . . . Parts Self-Destructed 70 | . . . . . . . . . . . 11 1 . 25 . . . 3 2 . 27 . 1 . . . . . Prevented 11 | . . . . . . . . . . . . 5 . 4 . . . . 1 . 1 . . . . . . . Kills | -11 -10 -10 -10 -9 -8 -7 -7 -7 -7 -6 -6 -6 -6 -5 -5 -5 -5 -5 -5 -5 -4 -4 -4 -4 -4 -3 -3 -3 ------- Run | Yrd Mat Min Exi Min Mat Fac Was Fac DSF Fac Low Low Dat Pro Fac Was Fac Upp Upp War Pro Fac Upp Upp Zhi Pro Res Qua Combat Hostiles Destroyed 137 | . 10 . . 4 19 6 . . 7 4 7 4 . 15 11 2 . 4 3 . 22 8 1 . . . 8 2 Melee 3 | . . . . . . . . . . . . . . . . . . . . . . . 1 . . . . 2 Guns 60 | . 8 . . 1 16 4 . . . . . . . 11 1 . . . . . 17 2 . . . . . . Cannons 45 | . . . . . . 2 . . 7 4 7 4 . 3 10 2 . 3 1 . . . . . . . 2 . AOE 28 | . 2 . . 3 3 . . . . . . . . . . . . 1 2 . 5 6 . . . . 6 . Classes Destroyed 20 | 2 5 . . . 6 . . . 1 . . 1 . 2 1 1 . . . . . . . . . . . 1 Worker 10 | . . . . . 1 5 . . . . . . . . 1 . . . . . . 3 . . . . . . Builder 6 | . . . . . 1 . . . . . . . . . 3 . . . . . . 2 . . . . . . Tunneler 1 | 1 . . . . . . . . . . . . . . . . . . . . . . . . . . . . Hauler 4 | . 1 . . . 2 . . . . . . . . . 1 . . . . . . . . . . . . . Recycler 2 | 1 . . . . . . . . . . . . . . 1 . . . . . . . . . . . . . Mechanic 1 | . . . . . . . . . . . . . . . 1 . . . . . . . . . . . . . Operator 2 | . 1 . . . . . . . . . . . . . 1 . . . . . . . . . . . . . Watcher 9 | . 2 . . . 3 . . . . . . . . . 2 . . . . . . 2 . . . . . . Swarmer 55 | . 3 . . 4 3 . . . 3 4 4 3 . 8 . . . 1 . . 14 . 1 . . . 7 . Cutter 3 | . . . . . 3 . . . . . . . . . . . . . . . . . . . . . . . Saboteur 2 | . . . . . . . . . . . . . . . . . . . . . . . . . . . . 2 Grunt 40 | . 7 . . . 9 6 . . 2 . 2 . . 3 1 . . . 2 . 4 4 . . . . . . Brawler 5 | . . . . . 1 . . . . . 1 . . . . . . . 1 . 2 . . . . . . . Sentry 8 | . . . . . 1 . . . 1 . . . . 1 2 . . 2 . . 1 . . . . . . . Specialist 2 | . . . . . 2 . . . . . . . . . . . . . . . . . . . . . . . Hunter 6 | . . . . . . . . . . . . 1 . . 4 . . . . . . 1 . . . . . . Programmer 11 | . . . . . . . . . . . . . . 2 4 . . 1 . . 1 2 . . . . 1 . Heavy 1 | . . . . . . . . . 1 . . . . . . . . . . . . . . . . . . . Behemoth 2 | . . . . . . . . . . . . . . 1 . . . . . . . 1 . . . . . . Compactor 2 | . . . . . . . . . . . . . . . . 2 . . . . . . . . . . . . Best Kill Streak 11 | 2 9 . . 4 7 7 . . 5 4 4 3 . 6 8 2 . 1 3 . 10 11 1 . . . 5 2 Combat Bots Only 10 | . 3 . . 4 7 4 . . 5 4 4 3 . 6 4 2 . 1 3 . 10 6 1 . . . 5 2 Max Kills in Single Turn 6 | 1 2 . . 3 3 2 . . 1 1 2 1 . 2 2 1 . 1 1 . 2 6 1 . . . 3 1 Gunslinging 1 | . . . . . . . . . . . . . . 1 . . . . . . . . . . . . . . Exploded 3 | . 2 . . 2 3 . . . . . . . . . . . . 1 1 . 2 3 . . . . 3 . Melee 1 | . . . . . . . . . . . . . . . . . . . . . . . 1 . . . . 1 Uniques/NPCs Destroyed . | . . . . . . . . . . . . . . . . . . . . . . . . . . . . . Combat | -11 -10 -10 -10 -9 -8 -7 -7 -7 -7 -6 -6 -6 -6 -5 -5 -5 -5 -5 -5 -5 -4 -4 -4 -4 -4 -3 -3 -3 -------- Run | Yrd Mat Min Exi Min Mat Fac Was Fac DSF Fac Low Low Dat Pro Fac Was Fac Upp Upp War Pro Fac Upp Upp Zhi Pro Res Qua Hostile Shots Fired 1652 | . 65 . . 9 154 32 2 . 174 23 37 22 . 151 171 6 . 113 15 . 149 93 37 22 . 127 154 96 Missed 563 | . 17 . . 4 51 6 1 . 65 5 11 8 . 25 40 1 . 37 . . 56 29 16 11 . 63 74 43 Damage Taken 18953 | . 564 . . 40 1321 377 41 . 1218 229 432 151 . 2271 2182 212 . 1885 330 . 1153 1096 413 221 . 1470 2144 1203 Core 4155 | . 114 . . 8 353 58 . . 53 . 46 31 . 255 341 7 . 318 58 . 160 183 81 81 . 708 933 367 Absorbed by Shields 1198 | . . . . . 192 . . . 61 52 46 59 . 244 . . . . . . 261 283 . . . . . . Redirected to Shielding 199 | . . . . 2 39 5 . . . . . . . . . . . . . . . . . . . 153 . . Ignored by Resistances 63 | . . . . . . 52 . . . . . . . . . . . . . . . . . . . . 11 . Regen/Repaired (Parts) 50 | . . . . . . . . . . . . . . . . . . . . 50 . . . . . . . . Core Remaining (%) 49 | 100 . . . 51 35 . . . 84 . . . . 60 . . . . . . 11 . . . . 3 . . Volleys Fired 426 | 4 51 . . 2 62 20 14 . 13 7 15 10 . 47 50 30 . 11 13 3 42 12 . . . . 12 8 Largest 4 | 2 2 . . 2 2 2 2 . 2 2 2 2 . 2 3 2 . 3 2 1 3 4 . . . . 2 1 Hottest 303 | 70 70 . . 50 95 100 100 . 106 106 106 162 . 171 233 165 . 208 124 7 222 303 . . . . 77 100 Shots Fired 824 | 8 91 . . 4 121 34 22 . 26 14 30 18 . 95 148 60 . 26 16 3 63 24 . . . . 13 8 Gun 370 | 8 88 . . 2 108 14 8 . . . . . . 49 14 1 . . . . 58 13 . . . . 1 6 Cannon 427 | . . . . . 9 20 14 . 26 14 30 18 . 46 134 59 . 26 13 . 1 6 . . . . 11 . Launcher 21 | . 3 . . 2 4 . . . . . . . . . . . . . 3 . 4 5 . . . . . . Special 6 | . . . . . . . . . . . . . . . . . . . . 3 . . . . . . 1 2 Kinetic 454 | 4 51 . . 2 108 14 8 . 26 14 30 . . 74 61 29 . 15 . . . . . . . . 12 6 Thermal 253 | 4 37 . . . 9 20 14 . . . . . . 2 87 30 . 11 13 . 17 6 . . . . 1 2 Explosive 16 | . 3 . . 2 4 . . . . . . . . . . . . . 3 . 4 . . . . . . . Electromagnetic 62 | . . . . . . . . . . . . 18 . 19 . 1 . . . . 18 6 . . . . . . Entropic 36 | . . . . . . . . . . . . . . . . . . . . . 24 12 . . . . . . Robot Hit Streak 21 | 3 10 . . 3 16 4 6 . 4 3 2 3 . 12 15 16 . 6 14 17 21 3 . . . . 3 1 Robot Miss Streak 9 | 1 5 . . 1 4 3 3 . 3 2 3 3 . 9 6 2 . 6 . . 5 4 . . . . 3 1 Penetration Max 1 | . . . . . . . . . . . . . . . 1 . . 1 . . . . . . . . . . Secondary Targets 16 | . 1 . . . 7 . . . . . . . . 5 . . . . . . 2 1 . . . . . . Max Gunslinging Chain 1 | . 1 . . . 1 . . . . . . . . 1 . . . . . . 1 1 . . . . . . Shots Hit Robots 553 | 5 49 . . 1 87 24 16 . 14 6 12 8 . 75 94 49 . 9 16 3 46 13 1 4 . 10 8 3 Core Hits 339 | 3 25 . . 4 53 19 1 . 9 4 10 5 . 66 34 10 . 7 10 . 39 22 1 2 . 4 10 1 Critical Kills 2 | . 1 . . . . . . . . . . . . . . . . 1 . . . . . . . . . . Critical Parts Destroyed 3 | . . . . . 1 . . . . . . . . . . . . . . . 1 1 . . . . . . Critical Strikes 18 | . 2 . . . 1 . . . 3 1 . . . 2 2 2 . 1 . . 2 2 . . . . . . Burn 3 | . 1 . . . . . . . . . . . . . . . . . . . 1 1 . . . . . . Destroy 3 | . 1 . . . 1 . . . . . . . . . . . . 1 . . . . . . . . . . Blast 9 | . . . . . . . . . 3 1 . . . 1 2 2 . . . . . . . . . . . . Corrupt 1 | . . . . . . . . . . . . . . 1 . . . . . . . . . . . . . . Detonate 2 | . . . . . . . . . . . . . . . . . . . . . 1 1 . . . . . . Melee Attacks 28 | . . . . . . . . . . . . . . . . 2 . . 6 . . . 1 5 . 10 4 . Impact . | . . . . . . . . . . . . . . . . . . . . . . . . . . . . . Slashing 8 | . . . . . . . . . . . . . . . . 2 . . 6 . . . . . . . . . Piercing 20 | . . . . . . . . . . . . . . . . . . . . . . . 1 5 . 10 4 . Sneak Attacks 1 | . . . . . . . . . . . . . . . . . . . . . . . . 1 . . . . Combat Hostiles . | . . . . . . . . . . . . . . . . . . . . . . . . . . . . . Follow-up Attacks . | . . . . . . . . . . . . . . . . . . . . . . . . . . . . . Damage Inflicted 18872 | 65 791 . . 128 2440 618 409 . 485 173 459 259 . 1616 3253 1648 . 421 757 . 2097 2563 27 7 . 15 533 108 Guns 5323 | 65 578 . . 15 1374 268 159 . . . . . . 746 330 2 . . . . 1402 288 . . . . . 96 Cannons 8647 | . . . . . 180 350 250 . 485 173 459 259 . 870 2923 1629 . 421 368 . . 52 . . . . 228 . Explosions 4750 | . 213 . . 113 886 . . . . . . . . . . . . . 318 . 695 2223 . . . . 302 . Melee 140 | . . . . . . . . . . . . . . . . 17 . . 71 . . . 27 7 . 15 3 . Ramming . | . . . . . . . . . . . . . . . . . . . . . . . . . . . . . Kinetic 7311 | 15 395 . . 15 1374 268 159 . 485 173 459 . . 1353 1246 798 . 247 . . . . . . . . 228 96 Thermal 4885 | 50 183 . . . 175 350 250 . . . . . . 84 2007 831 . 174 368 . 291 110 . . . . . 12 Explosive 2503 | . 213 . . 113 886 . . . . . . . . . . . . . 318 . 671 . . . . . 302 . Electromagnetic 661 | . . . . . . . . . . . . 259 . 179 . 2 . . . . 169 52 . . . . . . Impact 5 | . . . . . 5 . . . . . . . . . . . . . . . . . . . . . . . Slashing 88 | . . . . . . . . . . . . . . . . 17 . . 71 . . . . . . . . . Piercing 52 | . . . . . . . . . . . . . . . . . . . . . . . 27 7 . 15 3 . Entropic 3367 | . . . . . . . . . . . . . . . . . . . . . 966 2401 . . . . . . Highest Corruption 10 | . . . . . 7 . 10 10 9 . 3 3 3 10 4 4 4 4 . . . . . . . 8 6 7 Average Corruption 4 | . . . . . 3 . 5 9 5 . 3 3 3 3 3 4 4 4 . . . . . . . 4 4 6 Corruption Purged 5 | . . . . . . . . 1 4 . . . . . . . . . . . . . . . . . . . Corruption Blocked . | . . . . . . . . . . . . . . . . . . . . . . . . . . . . . Effects 96 | . . . . . 12 . 4 4 5 . 5 5 2 19 15 10 4 . . . . . . . . 4 3 4 Message Errors 22 | . . . . . 2 . . 1 1 . . 2 . 2 5 4 1 . . . . . . . . 1 1 2 Matter Fused 27 | . . . . . 3 . 3 1 1 . 2 2 1 7 3 . 1 . . . . . . . . 1 1 1 Heat Flow Errors 10 | . . . . . 3 . . . . . 2 . . 1 2 1 . . . . . . . . . 1 . . Energy Discharges 13 | . . . . . 1 . . 1 2 . 1 1 1 1 1 2 . . . . . . . . . 1 1 . Parts Rejected 2 | . . . . . . . . . . . . . . . . 2 . . . . . . . . . . . . Data Loss (minor) 10 | . . . . . 2 . . 1 1 . . . . 2 3 . 1 . . . . . . . . . . . Data Loss (major) 3 | . . . . . . . . . . . . . . . 1 1 1 . . . . . . . . . . . Misfires 2 | . . . . . . . . . . . . . . 2 . . . . . . . . . . . . . . Alerts 4 | . . . . . . . . . . . . . . 3 . . . . . . . . . . . . . 1 Misdirections 1 | . . . . . . . 1 . . . . . . . . . . . . . . . . . . . . . Weapon Failures 2 | . . . . . 1 . . . . . . . . 1 . . . . . . . . . . . . . . Overload Shots . | . . . . . . . . . . . . . . . . . . . . . . . . . . . . . Overflow Damage 443 | . . . . . . . . . 6 . . . . 24 118 . . 8 23 . 23 73 . . . . 168 . Projectiles 179 | . . . . . . . . . 6 . . . . 24 118 . . 8 23 . . . . . . . . . Explosions 264 | . . . . . . . . . . . . . . . . . . . . . 23 73 . . . . 168 . Melee . | . . . . . . . . . . . . . . . . . . . . . . . . . . . . . Knockbacks 18 | . . . . . . . . . . 1 3 . . 4 6 . . 3 . . . . . . . . 1 . Impact . | . . . . . . . . . . . . . . . . . . . . . . . . . . . . . Kinetic 16 | . . . . . . . . . . 1 3 . . 3 6 . . 2 . . . . . . . . 1 . Secondary 2 | . . . . . . . . . . . . . . 1 . . . 1 . . . . . . . . . . Self-Inflicted Damage 164 | . . . . . . . . . . . . . . . . . . . 50 . . . . . . . 114 . Shots 3 | . . . . . . . . . . . . . . . . . . . 2 . . . . . . . 1 . Rammed . | . . . . . . . . . . . . . . . . . . . . . . . . . . . . . Targets Rammed . | . . . . . . . . . . . . . . . . . . . . . . . . . . . . . Kicked . | . . . . . . . . . . . . . . . . . . . . . . . . . . . . . Crushed . | . . . . . . . . . . . . . . . . . . . . . . . . . . . . . Highest Temperature 447 | 27 235 . . . 196 127 . . 75 360 114 . . 249 192 . . 447 58 . 335 237 . 10 . 208 . . Average Temperature 91 | 12 82 . . . 49 73 . . 37 217 40 . . 141 88 . . 192 35 . 96 106 . 10 . 122 . . Received Heat Transfer 3190 | . 279 . . . 402 288 . . 266 . 141 . . 342 90 . . 486 171 . 28 162 69 30 . 123 120 193 Effects 6 | . . . . . . . . . . . . . . . . . . 6 . . . . . . . . . . Short Circuit 1 | . . . . . . . . . . . . . . . . . . 1 . . . . . . . . . . Damage (major) 5 | . . . . . . . . . . . . . . . . . . 5 . . . . . . . . . . Siege Activations . | . . . . . . . . . . . . . . . . . . . . . . . . . . . . . Robots Corrupted 1 | . . . . . . . . . . . . . . 1 . . . . . . . . . . . . . . Combat Hostiles 1 | . . . . . . . . . . . . . . 1 . . . . . . . . . . . . . . Parts Fried 8 | . . . . . . . . . . . . 5 . 1 . . . . . . 2 . . . . . . . Impact Corruptions . | . . . . . . . . . . . . . . . . . . . . . . . . . . . . . Robots Melted . | . . . . . . . . . . . . . . . . . . . . . . . . . . . . . Combat Hostiles . | . . . . . . . . . . . . . . . . . . . . . . . . . . . . . Parts Melted 5 | . 2 . . . 1 . . . . . . . . . 2 . . . . . . . . . . . . . Heat Transferred 6306 | 148 629 . . . 259 518 370 . . . . . . 74 2035 888 . 185 444 . 518 198 . . . . . 40 Parts Sabotaged 4 | . . . . . . . . . . . . . . . . . . . . . . . . . . . . 4 Parts Stolen . | . . . . . . . . . . . . . . . . . . . . . . . . . . . . . Parts Stripped . | . . . . . . . . . . . . . . . . . . . . . . . . . . . . . Power Chain Reactions . | . . . . . . . . . . . . . . . . . . . . . . . . . . . . . Alert | -11 -10 -10 -10 -9 -8 -7 -7 -7 -7 -6 -6 -6 -6 -5 -5 -5 -5 -5 -5 -5 -4 -4 -4 -4 -4 -3 -3 -3 ------- Run | Yrd Mat Min Exi Min Mat Fac Was Fac DSF Fac Low Low Dat Pro Fac Was Fac Upp Upp War Pro Fac Upp Upp Zhi Pro Res Qua Peak Influence 1610 | 10 315 44 . 135 460 291 101 21 160 192 . . . . 207 93 53 . . . . 863 . . . . 278 1610 Initial 157 | . 6 44 . . 52 146 101 21 14 84 . . . . . 72 13 . . . . 157 . . . . 9 119 Average 168 | 4 140 44 . 88 133 203 50 21 68 150 . . . . 71 66 41 . . . . 334 . . . . 79 1586 Maximum Alert Level 5 | . 1 . . . 2 1 . . . . . . . . 1 . . . . . . 3 . . . . 1 5 Low Security (%) 82 | 100 66 100 . 100 78 52 100 100 100 100 . . . . 89 100 100 . . . . 66 . . . . 83 . Level 1 11 | . 33 . . . 18 47 . . . . . . . . 10 . . . . . . 3 . . . . 16 . Level 2 1 | . . . . . 3 . . . . . . . . . . . . . . . . 13 . . . . . . Level 3 1 | . . . . . . . . . . . . . . . . . . . . . . 16 . . . . . . Level 4 . | . . . . . . . . . . . . . . . . . . . . . . . . . . . . . Level 5 . | . . . . . . . . . . . . . . . . . . . . . . . . . . . . . High Security . | . . . . . . . . . . . . . . . . . . . . . . . . . . . . . Max Security 3 | . . . . . . . . . . . . . . . . . . . . . . . . . . . . 99 Squads Dispatched 37 | . 2 . . . 7 2 . . 1 . . . . 1 3 . 2 . . . . 4 . . . . 3 12 Investigation 7 | . 1 . . . 1 . . . . . . . . 1 . . 1 . . . . 2 . . . . 1 . Extermination 5 | . . . . . . 1 . . . . . . . . 1 . 1 . . . . 1 . . . . 1 . Reinforcement 10 | . 1 . . . 4 . . . 1 . . . . . 2 . . . . . . 1 . . . . 1 . Assault 12 | . . . . . . . . . . . . . . . . . . . . . . . . . . . . 12 Garrison 3 | . . . . . 2 1 . . . . . . . . . . . . . . . . . . . . . . Intercept . | . . . . . . . . . . . . . . . . . . . . . . . . . . . . . Searches Triggered . | . . . . . . . . . . . . . . . . . . . . . . . . . . . . . Data Miner Redirects 2 | . . . . . . . . . . . . . . . . . 1 . . . . . . . . . 1 . Construction Impeded 2 | . . . . . . . . . . . . . . . 1 . . . . . . 1 . . . . . . Haulers Reinforced . | . . . . . . . . . . . . . . . . . . . . . . . . . . . . . Active Scanning Responses . | . . . . . . . . . . . . . . . . . . . . . . . . . . . . . Cargo Convoy Interrupts . | . . . . . . . . . . . . . . . . . . . . . . . . . . . . . Stealth | -11 -10 -10 -10 -9 -8 -7 -7 -7 -7 -6 -6 -6 -6 -5 -5 -5 -5 -5 -5 -5 -4 -4 -4 -4 -4 -3 -3 -3 --------- Run | Yrd Mat Min Exi Min Mat Fac Was Fac DSF Fac Low Low Dat Pro Fac Was Fac Upp Upp War Pro Fac Upp Upp Zhi Pro Res Qua Distress Signals 5 | . 1 . . . 1 . . . . . . . . . 1 . . . . . . 2 . . . . . . Communications Jammed . | . . . . . . . . . . . . . . . . . . . . . . . . . . . . . Distress Signals . | . . . . . . . . . . . . . . . . . . . . . . . . . . . . . Times Spotted 337 | . 20 . . 3 37 7 6 . 7 4 7 4 . 16 18 6 . 13 3 15 27 21 15 5 . 30 33 40 Peak Tracking Total 23 | . 5 . . 4 12 4 6 . 4 4 4 3 . 5 6 4 1 7 3 12 5 10 7 5 . 6 15 23 Tactical Retreats 31 | . 2 . . . 1 . . . . . . . . . . . . 3 . . 2 2 7 . . 9 5 . Traps | -11 -10 -10 -10 -9 -8 -7 -7 -7 -7 -6 -6 -6 -6 -5 -5 -5 -5 -5 -5 -5 -4 -4 -4 -4 -4 -3 -3 -3 ------- Run | Yrd Mat Min Exi Min Mat Fac Was Fac DSF Fac Low Low Dat Pro Fac Was Fac Upp Upp War Pro Fac Upp Upp Zhi Pro Res Qua Traps Triggered 4 | . . . . . . 1 . . . . . . . . 2 . . . . . . . . . . . . 1 Indirectly . | . . . . . . . . . . . . . . . . . . . . . . . . . . . . . Trap Hack Attempts . | . . . . . . . . . . . . . . . . . . . . . . . . . . . . . Triggered . | . . . . . . . . . . . . . . . . . . . . . . . . . . . . . Disarmed . | . . . . . . . . . . . . . . . . . . . . . . . . . . . . . Reprogrammed . | . . . . . . . . . . . . . . . . . . . . . . . . . . . . . Reused . | . . . . . . . . . . . . . . . . . . . . . . . . . . . . . Traps Extracted . | . . . . . . . . . . . . . . . . . . . . . . . . . . . . . Installed . | . . . . . . . . . . . . . . . . . . . . . . . . . . . . . Triggered 13 | . . . . . . . . . . . . . . . . . . . 3 10 . . . . . . . . Machines | -11 -10 -10 -10 -9 -8 -7 -7 -7 -7 -6 -6 -6 -6 -5 -5 -5 -5 -5 -5 -5 -4 -4 -4 -4 -4 -3 -3 -3 ---------- Run | Yrd Mat Min Exi Min Mat Fac Was Fac DSF Fac Low Low Dat Pro Fac Was Fac Upp Upp War Pro Fac Upp Upp Zhi Pro Res Qua Machines Disabled 16 | . 1 . . 2 1 . . . . 1 . . . . 1 . . 2 . . 2 4 . 1 . . 1 . Max in Single Turn 3 | . 1 . . 1 1 . . . . 1 . . . . 1 . . 1 . . 2 3 . 1 . . 1 . Garrison Access 1 | . . . . . . . . . . . . . . . . . . . . . . 1 . . . . . . Machines Repaired . | . . . . . . . . . . . . . . . . . . . . . . . . . . . . . Machines Dismantled 5 | . . . . . . . . . . . . . . . . . . . . . . . . . . . 5 . Machines Sabotaged . | . . . . . . . . . . . . . . . . . . . . . . . . . . . . . Overloaded Fab Kills . | . . . . . . . . . . . . . . . . . . . . . . . . . . . . . Hacking | -11 -10 -10 -10 -9 -8 -7 -7 -7 -7 -6 -6 -6 -6 -5 -5 -5 -5 -5 -5 -5 -4 -4 -4 -4 -4 -3 -3 -3 --------- Run | Yrd Mat Min Exi Min Mat Fac Was Fac DSF Fac Low Low Dat Pro Fac Was Fac Upp Upp War Pro Fac Upp Upp Zhi Pro Res Qua Machines Accessed 43 | . 2 1 . . 3 . . 1 . 1 1 . 4 1 4 . 4 2 . 2 . 2 1 1 9 1 3 . Terminals 15 | . 2 . . . 2 . . 1 . 1 . . . 1 2 . 2 1 . . . 1 . . . 1 1 . Fabricators 3 | . . . . . . . . . . . . . . . 1 . . . . . . . . . . . 2 . Repair Stations 1 | . . . . . . . . . . . . . . . . . 1 . . . . . . . . . . . Recycling Units 2 | . . . . . . . . . . . . . . . 1 . 1 . . . . . . . . . . . Scanalyzers . | . . . . . . . . . . . . . . . . . . . . . . . . . . . . . Garrison Access 2 | . . . . . 1 . . . . . . . . . . . . . . . . 1 . . . . . . Total Hacks 141 | . 4 1 . . 9 . . 2 . 1 1 . 27 3 8 . 8 8 . 3 . 5 1 1 48 1 10 . Successful 110 | . 1 1 . . 1 . . 1 . . 1 . 27 3 3 . 4 8 . 3 . 3 1 1 48 1 3 . Failed 31 | . 3 . . . 8 . . 1 . 1 . . . . 5 . 4 . . . . 2 . . . . 7 . Catastrophic 5 | . 2 . . . . . . . . . . . . . 1 . 1 . . . . . . . . . 1 . Database Lockouts . | . . . . . . . . . . . . . . . . . . . . . . . . . . . . . Manual 9 | . 2 . 1 . . . . . . . . . . . 1 . . . . 2 . 2 . 1 . . . . Terminals 38 | . 4 . . . 5 . . 2 . 1 . . . 3 5 . 4 7 . . . 3 . . . 1 3 . Fabricators 9 | . . . . . . . . . . . . . . . 2 . . . . . . . . . . . 7 . Repair Stations 3 | . . . . . . . . . . . . . . . . . 3 . . . . . . . . . . . Recycling Units 2 | . . . . . . . . . . . . . . . 1 . 1 . . . . . . . . . . . Scanalyzers . | . . . . . . . . . . . . . . . . . . . . . . . . . . . . . Garrison Access 6 | . . . . . 4 . . . . . . . . . . . . . . . . 2 . . . . . . Terminal Hacks 103 | . 1 1 . . 1 . . 1 . . 1 . 27 3 1 . 2 8 . 3 . 2 1 1 48 1 1 . Record 62 | . . . . . . . . . . . . . 11 3 1 . . 8 . 2 . . . . 36 1 . . Part Schematic 12 | . . . . . . . . . . . . . 8 . . . . . . . . . . . 4 . . . Robot Schematic 5 | . . . . . . . . . . . . . 5 . . . . . . . . . . . . . . . Robot Analysis 4 | . . . . . . . . . . . . . . . . . . . . . . . . . 4 . . . Prototype ID Bank 7 | . . . . . . . . . . . . . 3 . . . . . . . . . . . 4 . . . Open Door 5 | . . 1 . . . . . . . . 1 . . . . . . . . 1 . . 1 1 . . . . Open DSF 1 | . . . . . . . . 1 . . . . . . . . . . . . . . . . . . . . Level Access Points 1 | . . . . . . . . . . . . . . . . . . . . . . . . . . . 1 . Branch Access Points 1 | . . . . . . . . . . . . . . . . . 1 . . . . . . . . . . . Alert Level 2 | . . . . . 1 . . . . . . . . . . . 1 . . . . . . . . . . . Dispatch Records 2 | . 1 . . . . . . . . . . . . . . . . . . . . 1 . . . . . . Assault Status 1 | . . . . . . . . . . . . . . . . . . . . . . 1 . . . . . . Fabricator Hacks 3 | . . . . . . . . . . . . . . . 1 . . . . . . . . . . . 2 . Load Schematic 2 | . . . . . . . . . . . . . . . . . . . . . . . . . . . 2 . Build 1 | . . . . . . . . . . . . . . . 1 . . . . . . . . . . . . . Repair Station Hacks 1 | . . . . . . . . . . . . . . . . . 1 . . . . . . . . . . . Scan Component 1 | . . . . . . . . . . . . . . . . . 1 . . . . . . . . . . . Recycling Unit Hacks 2 | . . . . . . . . . . . . . . . 1 . 1 . . . . . . . . . . . Report Inventory 2 | . . . . . . . . . . . . . . . 1 . 1 . . . . . . . . . . . Scanalyzer . | . . . . . . . . . . . . . . . . . . . . . . . . . . . . . Garrison Access Hacks . | . . . . . . . . . . . . . . . . . . . . . . . . . . . . . Unauthorized Hacks 1 | . . . . . . . . . . . . . . . . . . . . . . 1 . . . . . . Terminals . | . . . . . . . . . . . . . . . . . . . . . . . . . . . . . Fabricators . | . . . . . . . . . . . . . . . . . . . . . . . . . . . . . Repair Stations . | . . . . . . . . . . . . . . . . . . . . . . . . . . . . . Recycling Units . | . . . . . . . . . . . . . . . . . . . . . . . . . . . . . Scanalyzers . | . . . . . . . . . . . . . . . . . . . . . . . . . . . . . Garrison Access 1 | . . . . . . . . . . . . . . . . . . . . . . 1 . . . . . . Jam 1 | . . . . . . . . . . . . . . . . . . . . . . 1 . . . . . . Data Cores Recovered . | . . . . . . . . . . . . . . . . . . . . . . . . . . . . . Used . | . . . . . . . . . . . . . . . . . . . . . . . . . . . . . Hacking Detections 18 | . 2 . . . 3 . . . . 1 . . . 1 3 . 3 1 . . . 1 . . . . 3 . Full Trace Events 6 | . 1 . . . 1 . . . . . . . . 1 . . 1 . . . . 1 . . . . 1 . Feedback Events 1 | . . . . . . . . . . . . . . . . . . . . . . . . . . . 1 . Hackware Fried 1 | . . . . . . . . . . . . . . . . . . . . . . . . . . . 1 . Feedback Blocked . | . . . . . . . . . . . . . . . . . . . . . . . . . . . . . Robot Schematics Acquired 5 | . . . . . . . . . . . . . 5 . . . . . . . . . . . . . . . Robots Built . | . . . . . . . . . . . . . . . . . . . . . . . . . . . . . Authchips . | . . . . . . . . . . . . . . . . . . . . . . . . . . . . . Time . | . . . . . . . . . . . . . . . . . . . . . . . . . . . . . Total Robot Build Rating . | . . . . . . . . . . . . . . . . . . . . . . . . . . . . . Part Schematics Acquired 12 | . . . . . . . . . . . . . 8 . . . . . . . . . . . 4 . . . Parts Built 2 | . . . . . . . . . . . . . . . 2 . . . . . . . . . . . . . Authchips . | . . . . . . . . . . . . . . . . . . . . . . . . . . . . . Time 69 | . . . . . . . . . . . . . . . 69 . . . . . . . . . . . . . Total Part Build Rating 18 | . . . . . . . . . . . . . . . 18 . . . . . . . . . . . . . Parts Repaired . | . . . . . . . . . . . . . . . . . . . . . . . . . . . . . Time . | . . . . . . . . . . . . . . . . . . . . . . . . . . . . . Parts Recycled . | . . . . . . . . . . . . . . . . . . . . . . . . . . . . . Recycled Matter . | . . . . . . . . . . . . . . . . . . . . . . . . . . . . . Retrieved Matter . | . . . . . . . . . . . . . . . . . . . . . . . . . . . . . Retrieved Components . | . . . . . . . . . . . . . . . . . . . . . . . . . . . . . Parts Scanalyzed . | . . . . . . . . . . . . . . . . . . . . . . . . . . . . . Part Schematics Acquired . | . . . . . . . . . . . . . . . . . . . . . . . . . . . . . Parts Damaged . | . . . . . . . . . . . . . . . . . . . . . . . . . . . . . Bothacking | -11 -10 -10 -10 -9 -8 -7 -7 -7 -7 -6 -6 -6 -6 -5 -5 -5 -5 -5 -5 -5 -4 -4 -4 -4 -4 -3 -3 -3 ------------ Run | Yrd Mat Min Exi Min Mat Fac Was Fac DSF Fac Low Low Dat Pro Fac Was Fac Upp Upp War Pro Fac Upp Upp Zhi Pro Res Qua Used RIF Installer . | . . . . . . . . . . . . . . . . . . . . . . . . . . . . . Robots Hacked . | . . . . . . . . . . . . . . . . . . . . . . . . . . . . . Non-combat . | . . . . . . . . . . . . . . . . . . . . . . . . . . . . . Combat . | . . . . . . . . . . . . . . . . . . . . . . . . . . . . . Robot Hacks Applied . | . . . . . . . . . . . . . . . . . . . . . . . . . . . . . Relay Couplers Released . | . . . . . . . . . . . . . . . . . . . . . . . . . . . . . Fabnet Peak Effective % . | . . . . . . . . . . . . . . . . . . . . . . . . . . . . . Robots Rewired 1 | . . . . . . 1 . . . . . . . . . . . . . . . . . . . . . . Allies Hacked . | . . . . . . . . . . . . . . . . . . . . . . . . . . . . . Hacks Repelled . | . . . . . . . . . . . . . . . . . . . . . . . . . . . . . Allies | -11 -10 -10 -10 -9 -8 -7 -7 -7 -7 -6 -6 -6 -6 -5 -5 -5 -5 -5 -5 -5 -4 -4 -4 -4 -4 -3 -3 -3 -------- Run | Yrd Mat Min Exi Min Mat Fac Was Fac DSF Fac Low Low Dat Pro Fac Was Fac Upp Upp War Pro Fac Upp Upp Zhi Pro Res Qua Total Allies 3 | . . 2 . . . 1 . . . . . . . . . . . . . . . . . . . . . . Largest Group 2 | . . 2 2 . . 1 1 . . . . . . . . . . . . . . . . . . . . . Highest-Rated Group 45 | . . 45 45 . . 21 21 . . . . . . . . . . . . . . . . . . . . . Highest-Rated Ally 31 | . . 31 31 . . 21 21 . . . . . . . . . . . . . . . . . . . . . Total Orders 6 | . . . . . . . 3 . . . . . . . . . . . . . . . . . . . 3 . ROAM 1 | . . . . . . . . . . . . . . . . . . . . . . . . . . . 1 . EXPLORE 5 | . . . . . . . 3 . . . . . . . . . . . . . . . . . . . 2 . Ally Attacks 24 | . . . . . . 5 19 . . . . . . . . . . . . . . . . . . . . . Total Damage 189 | . . . . . . 131 58 . . . . . . . . . . . . . . . . . . . . . Kills . | . . . . . . . . . . . . . . . . . . . . . . . . . . . . . Allies Corrupted 1 | . . . . . . . 1 . . . . . . . . . . . . . . . . . . . . . Allies Melted . | . . . . . . . . . . . . . . . . . . . . . . . . . . . . . Intel | -11 -10 -10 -10 -9 -8 -7 -7 -7 -7 -6 -6 -6 -6 -5 -5 -5 -5 -5 -5 -5 -4 -4 -4 -4 -4 -3 -3 -3 ------- Run | Yrd Mat Min Exi Min Mat Fac Was Fac DSF Fac Low Low Dat Pro Fac Was Fac Upp Upp War Pro Fac Upp Upp Zhi Pro Res Qua Robot Analysis Total 4 | . . . . . . . . . . . . . . . . . . . . . . . . . 4 . . . Derelict Logs Recovered 9 | . . . . 1 . . . . . . 1 1 . 1 . . . . 1 . 2 . . 2 . . . . Drone Launches 8 | . . . . . . . 5 . . . . . . . . . . . . . . . . . . . 3 . Drone Recoveries 3 | . . . . . . . 2 . . . . . . . . . . . . . . . . . . . 1 . Decoded 0b10 Intel 23 | . . . . . . . . . . . . . . . . . . . . . . 9 . . . . 11 3 Traps 20 | . . . . . . . . . . . . . . . . . . . . . . 8 . . . . 10 2 Garrisons 2 | . . . . . . . . . . . . . . . . . . . . . . 1 . . . . . 1 Exits 1 | . . . . . . . . . . . . . . . . . . . . . . . . . . . 1 . Exploration | -11 -10 -10 -10 -9 -8 -7 -7 -7 -7 -6 -6 -6 -6 -5 -5 -5 -5 -5 -5 -5 -4 -4 -4 -4 -4 -3 -3 -3 ------------- Run | Yrd Mat Min Exi Min Mat Fac Was Fac DSF Fac Low Low Dat Pro Fac Was Fac Upp Upp War Pro Fac Upp Upp Zhi Pro Res Qua Turns Passed 11894 | 75 402 177 241 171 844 284 138 109 224 295 673 392 87 826 1168 367 291 851 444 689 728 362 440 363 126 427 483 217 Spaces Moved 9589 | 58 246 162 233 148 441 219 118 116 143 205 561 324 80 577 679 304 241 552 336 539 488 165 434 318 153 724 582 443 Core 328 | 6 . . . . . . . . . . . . . . . 116 . . . . . . . . . 114 87 5 Treads . | . . . . . . . . . . . . . . . . . . . . . . . . . . . . . Legs . | . . . . . . . . . . . . . . . . . . . . . . . . . . . . . Wheels 6756 | 52 246 162 233 148 441 219 118 116 143 205 561 324 80 577 679 188 241 552 336 539 488 108 . . . . . . Hover 1651 | . . . . . . . . . . . . . . . . . . . . . . 57 434 318 153 610 79 . Flight 854 | . . . . . . . . . . . . . . . . . . . . . . . . . . . 416 438 Fastest Speed 36 | 50 80 100 100 100 80 80 80 80 80 110 110 110 110 95 105 50 80 115 105 105 120 36 46 46 46 38 37 37 Average Speed 89 | 76 95 103 100 100 98 80 80 80 100 110 110 110 110 109 109 83 106 121 113 115 125 116 46 46 46 46 42 37 Slowest Speed 200 | 80 105 105 100 100 115 80 80 80 125 110 110 110 110 110 115 115 120 145 130 160 160 160 46 46 46 50 200 50 Overloaded Moves 26 | . . . . . . . . . . . . . . . . . . . . . . 3 . . . 23 . . Propulsion Burnouts . | . . . . . . . . . . . . . . . . . . . . . . . . . . . . . Robots Hopped . | . . . . . . . . . . . . . . . . . . . . . . . . . . . . . Cave-ins Triggered . | . . . . . . . . . . . . . . . . . . . . . . . . . . . . . Teleports 1 | . . . . . . . . . . . . . . . . . . . . . . . . . . 1 . . Exploration Rate (%) 46 | 4 43 36 61 42 39 5 80 4 85 10 70 45 70 83 19 81 7 59 43 73 69 8 64 55 62 82 18 28 Regions Visited 28 Branch Regions 16 Pre-discovered Areas 7 | . . . . . . . . . . . . . 1 . . . . 2 . . 1 . . . 3 . . . Known Exits Taken 17 | . 1 1 . . . . . 1 . . 1 1 . 1 . . 1 1 1 1 1 1 1 1 1 1 1 . Unknown Exits Taken 6 | 1 . . 1 1 1 . . . . 1 . . 1 . . . . . . . . . . . . . . . Scrap Searched 26 | . . . . 1 . . . . . . 3 2 . 5 . . . 1 3 . 3 . 1 3 . 4 . . Spaces Dug 11 | . . . . . . . . . . . . . . . 1 . . . . . . 10 . . . . . . Terrain Destroyed 399 | . 14 . . 15 56 . . . 2 3 11 . . 6 38 6 . 6 45 . 58 119 . . . . 19 1 Melee . | . . . . . . . . . . . . . . . . . . . . . . . . . . . . . Projectile 106 | . . . . . 2 . . . 2 3 11 . . 6 38 6 . 6 1 . 20 6 . . . . 4 1 AOE 293 | . 14 . . 15 54 . . . . . . . . . . . . . 44 . 38 113 . . . . 15 . Terrain Rammed . | . . . . . . . . . . . . . . . . . . . . . . . . . . . . . Walls Destroyed . | . . . . . . . . . . . . . . . . . . . . . . . . . . . . . Machines Disabled . | . . . . . . . . . . . . . . . . . . . . . . . . . . . . . Actions | -11 -10 -10 -10 -9 -8 -7 -7 -7 -7 -6 -6 -6 -6 -5 -5 -5 -5 -5 -5 -5 -4 -4 -4 -4 -4 -3 -3 -3 --------- Run | Yrd Mat Min Exi Min Mat Fac Was Fac DSF Fac Low Low Dat Pro Fac Was Fac Upp Upp War Pro Fac Upp Upp Zhi Pro Res Qua Total 12092 | 80 322 171 241 167 772 292 139 131 203 263 588 342 79 670 993 356 275 712 377 610 541 318 670 535 208 818 736 483 Wait 1383 | . 4 5 2 18 221 25 1 . 1 36 2 4 . 11 192 1 9 120 4 22 1 116 228 203 46 69 34 8 Move 9563 | 57 245 161 232 147 440 219 117 115 142 204 560 323 79 576 679 303 240 551 335 538 487 164 433 317 152 723 581 443 Hop . | . . . . . . . . . . . . . . . . . . . . . . . . . . . . . Pick Up 248 | 12 15 1 2 . 27 15 2 11 21 5 4 2 . 12 31 4 14 10 10 14 3 1 2 3 3 7 11 6 Fast Attach 48 | . 1 . . . . . . . 1 . . . . . 3 4 4 2 . 8 . 1 4 2 3 1 9 5 Attach 144 | 6 4 1 1 . 15 4 1 2 8 4 5 . . 13 16 4 6 6 9 3 4 14 1 . . 1 8 8 Detach 15 | . . . . . 1 . . . . . 2 2 . . 1 1 2 . . . . 5 . . . . . 1 Swap 42 | . 1 1 1 . 3 4 2 2 1 1 . 1 . 11 5 1 . 3 . 3 1 . . 1 . . . . Drop 110 | 1 1 2 3 . 3 . 2 1 16 6 . . . . 8 6 . 9 . 19 1 5 1 4 4 7 7 4 Fire 426 | 4 51 . . 2 62 20 14 . 13 7 15 10 . 47 50 30 . 11 13 3 42 12 . . . . 12 8 Melee 28 | . . . . . . . . . . . . . . . . 2 . . 6 . . . 1 5 . 10 4 . Ram . | . . . . . . . . . . . . . . . . . . . . . . . . . . . . . Kick . | . . . . . . . . . . . . . . . . . . . . . . . . . . . . . Crush . | . . . . . . . . . . . . . . . . . . . . . . . . . . . . . Escape Stasis 8 | . . . . . . . . . . . . . . . 8 . . . . . . . . . . . . . Rewire 8 | . . . . . . 5 . . . . . . . . . . . . . . 2 . . . . . 1 . Trap . | . . . . . . . . . . . . . . . . . . . . . . . . . . . . . Miscellaneous 69 | . . . . . . . . . . . . . . . . . . . . . . . . . . . 69 . Route ------- -11/Scrapyard -10/Materials (discovered 2 exits: *Mat / *Min) -10/Mines (discovered 2 exits: *Mat / *Exi) -10/Exiles -9/Mines -8/Materials -7/Factory -7/Waste -7/Factory -7/DSF -6/Factory -6/Lower Caves -6/Lower Caves -6/Data Miner -5/Proximity Caves -5/Factory -5/Waste -5/Factory (discovered 2 exits: *Upp x2) -5/Upper Caves -5/Upper Caves (discovered 2 exits: *Fac / *War) -5/Warlord -4/Proximity Caves -4/Factory (discovered 2 exits: Res / *Upp) -4/Upper Caves -4/Upper Caves (discovered 2 exits: *Res / *Zhi) -4/Zhirov -3/Proximity Caves -3/Research (discovered 4 exits: Res x3 / *Qua) -3/Quarantine History --------- Turn | Location | Event 19 | -11/Scrapyard | Discovered new exit (range 16) 76 | -11/Scrapyard | Entered Materials 314 | -10/Materials | Build established: Mutant 378 | -10/Materials | Discovered new exit (range 16) 391 | -10/Materials | Identified exit to Materials 404 | -10/Materials | Discovered new exit (range 8) 451 | -10/Materials | Identified exit to Mines 478 | -10/Materials | Entered Mines 483 | -10/Mines | Discovered exit to Materials (range 15) 592 | -10/Mines | Found the Drone Emporium 601 | -10/Mines | Found Prototype Device 646 | -10/Mines | Deemed a non-threat by the Exiles lab entrance 646 | -10/Mines | Discovered new exit (range 5) 649 | -10/Mines | Identified exit to Exiles 655 | -10/Mines | Entered Exiles 655 | -10/Exiles | Accompanied by 2 allies 680 | -10/Exiles | Met 8R-AWN 685 | -10/Exiles | Led the pair of lost Derelicts to a safe place 706 | -10/Exiles | Met EX-HEX 737 | -10/Exiles | Met EX-BIN 751 | -10/Exiles | Aligned with FarCom system 752 | -10/Exiles | Given EX-Vault access code 776 | -10/Exiles | Opened EX-Vault 782 | -10/Exiles | Found Prototype Storage 783 | -10/Exiles | Identified Superbattery 798 | -10/Exiles | Found Prototype Storage 820 | -10/Exiles | Warned to stay clear of 0b10 Research branches 847 | -10/Exiles | Met EX-DEC 888 | -10/Exiles | Discovered new exit (range 10) 896 | -10/Exiles | Left Exiles lab with Lightpack 2.0 896 | -10/Exiles | Entered Mines 1019 | -9/Mines | Learned location of 1 exit from Lower Caves 1057 | -9/Mines | Discovered new exit (range 11) 1067 | -9/Mines | Entered Materials 1067 | -8/Materials | Evolved 4 slots: Utility x4 1067 | -8/Materials | Identified Lightpack 2.0 1069 | -8/Materials | Identified Thief Drone Bay 1415 | -8/Materials | Build established: Hauler-Skirmisher 1771 | -8/Materials | Destroyed 7 combat bots 1776 | -8/Materials | Garrison activated, responded to threat 1812 | -8/Materials | Discovered new exit (range 12) 1835 | -8/Materials | Core integrity fell below 50% 1873 | -8/Materials | Lost 5 parts (1p2n2w) 1911 | -8/Materials | Entered Factory 1911 | -7/Factory | Evolved 2 slots: Propulsion x1, Utility x1 1945 | -7/Factory | Build established: Hauler-Mutant 2194 | -7/Factory | Garrison activated, responded to threat 2195 | -7/Factory | Sucked down chute 2195 | -7/Factory | Entered Waste 2200 | -7/Waste | 1 allies followed down the chute 2207 | -7/Waste | Spotted C-40 Crusher 2210 | -7/Waste | EMP discharged 2229 | -7/Waste | Spotted C-40 Crusher 2263 | -7/Waste | Lost 4 allies 2287 | -7/Waste | Spotted C-40 Crusher 2295 | -7/Waste | Spotted C-40 Crusher 2307 | -7/Waste | Spotted C-40 Crusher 2307 | -7/Waste | Spotted C-40 Crusher 2310 | -7/Waste | EMP discharged 2310 | -7/Waste | System corruption reached 10% 2315 | -7/Waste | Crushed by Compactor (0 parts destroyed, 1 dropped) 2318 | -7/Waste | Discovered new exit (range 16) 2333 | -7/Waste | Entered Factory 2434 | -7/Factory | Identified exit to DSF 2442 | -7/Factory | Entered DSF 2473 | -7/DSF | Discovered new exit (range 16) 2490 | -7/DSF | Additional patrols routed to DSF 2538 | -7/DSF | Lost 5 parts (1p2n1u1w) 2666 | -7/DSF | Entered Factory 2666 | -6/Factory | Evolved 2 slots: Power x1, Utility x1 2951 | -6/Factory | Discovered new exit (range 7) 2961 | -6/Factory | Entered Lower Caves 2962 | -6/Lower Caves | Encountered a Warlord checkpoint 2962 | -6/Lower Caves | Identified exit to Lower Caves 3074 | -6/Lower Caves | Learned location of 1 exit from Lower Caves 3634 | -6/Lower Caves | Entered another Lower Caves area 3635 | -6/Lower Caves | Identified exit to Data Miner 4010 | -6/Lower Caves | Learned 8 Factory zone layouts 4026 | -6/Lower Caves | Entered Data Miner 4026 | -6/Data Miner | Discovered new exit (range 7) 4047 | -6/Data Miner | Met Data Miner 4076 | -6/Data Miner | Learned location of Section 7 (-3) 4076 | -6/Data Miner | Acquired the access code to Warlord's prototype stash 4087 | -6/Data Miner | Received God Mode back door access code from Data Miner 4113 | -6/Data Miner | Entered Proximity Caves 4355 | -5/Proximity Caves | Spotted B-75 Beast 4405 | -5/Proximity Caves | Destroyed B-75 Beast 4436 | -5/Proximity Caves | Lost 3 parts (1p1u1w) 4450 | -5/Proximity Caves | Identified exit to Factory 4471 | -5/Proximity Caves | Attracted the attention of an 0b10 base 4515 | -5/Proximity Caves | Learned Armory emergency access door positions 4528 | -5/Proximity Caves | Lost 3 parts (1p2n) 4600 | -5/Proximity Caves | Attracted the attention of an 0b10 checkpoint 4841 | -5/Proximity Caves | System corruption reached 10% 4939 | -5/Proximity Caves | Entered Factory 4939 | -5/Factory | Evolved 2 slots: Utility x1, Weapon x1 4940 | -5/Factory | Identified exit to Upper Caves 5164 | -5/Factory | Fabricated Lgt. Quantum Reactor? 5247 | -5/Factory | Build established: Hauler-Skirmisher 6011 | -5/Factory | Lost 10 parts (2p1n4u3w) 6107 | -5/Factory | Sucked down chute 6107 | -5/Factory | Entered Waste 6135 | -5/Waste | Spotted C-40 Crusher 6152 | -5/Waste | Destroyed C-40 Crusher 6165 | -5/Waste | Spotted C-40 Crusher 6169 | -5/Waste | Destroyed C-40 Crusher 6174 | -5/Waste | Spotted C-40 Crusher 6185 | -5/Waste | Spotted C-40 Crusher 6225 | -5/Waste | Crushed by Compactor (1 part destroyed, 1 dropped) 6290 | -5/Waste | Spotted C-40 Crusher 6294 | -5/Waste | Spotted C-40 Crusher 6380 | -5/Waste | Crushed by Compactor (1 part destroyed, 1 dropped) 6383 | -5/Waste | Crushed by Compactor (1 part destroyed) 6391 | -5/Waste | Crushed by Compactor (1 part destroyed, 2 dropped) 6432 | -5/Waste | Lost 7 parts (1p2n1u3w) 6450 | -5/Waste | Discovered new exit (range 13) 6467 | -5/Waste | Found Unknown Protection 6468 | -5/Waste | Identified Adv. Powered Armor 6472 | -5/Waste | Identified exit to Factory 6474 | -5/Waste | Entered Factory 6538 | -5/Factory | Incoming investigation squad redirected 6562 | -5/Factory | Build established: Mutant 6765 | -5/Factory | Entered Upper Caves 6820 | -5/Upper Caves | Attracted the attention of an 0b10 checkpoint 6987 | -5/Upper Caves | Found Alien Artifact 6988 | -5/Upper Caves | Identified Dimensional Node Initializer 6988 | -5/Upper Caves | Initialized slip node 7288 | -5/Upper Caves | Build established: Gunner 7288 | -5/Upper Caves | Attracted the attention of an 0b10 base 7362 | -5/Upper Caves | Lost 3 parts (1n1u1w) 7409 | -5/Upper Caves | Core integrity fell below 50% 7439 | -5/Upper Caves | Lost 4 parts (1n1u2w) 7524 | -5/Upper Caves | Learned location of 1 exit from Factory 7524 | -5/Upper Caves | Learned 8 Factory zone layouts 7524 | -5/Upper Caves | Learned Armory emergency access door positions 7524 | -5/Upper Caves | Learned Research stockpile data 7524 | -5/Upper Caves | Identified exit to Upper Caves 7524 | -5/Upper Caves | Learned location of Armory (-4) 7616 | -5/Upper Caves | Entered another Upper Caves area 7622 | -5/Upper Caves | Learned Factory emergency access door positions 7639 | -5/Upper Caves | Build established: Mutant 7661 | -5/Upper Caves | Discovered new exit (range 12) 7668 | -5/Upper Caves | Encountered a Warlord checkpoint 7926 | -5/Upper Caves | Lost 3 parts (1p1u1w) 8040 | -5/Upper Caves | Discovered new exit (range 12) 8051 | -5/Upper Caves | Identified exit to Warlord 8060 | -5/Upper Caves | Entered Warlord 8095 | -5/Warlord | System corruption cleaned by Quarantine Array 8219 | -5/Warlord | Build established: Gunner 8239 | -5/Warlord | Visited the Vortex Lab 8252 | -5/Warlord | Found Prototype Energy Gun 8255 | -5/Warlord | Warlord's base attacked by MAIN.C 8256 | -5/Warlord | Found Prototype Energy Gun 8261 | -5/Warlord | Found Prototype Launcher 8330 | -5/Warlord | Identified Vortex Shotgun (x2) 8489 | -5/Warlord | Met Warlord 8522 | -5/Warlord | Opened Warlord's prototype stash 8527 | -5/Warlord | Found Prototype Reactor 8527 | -5/Warlord | Identified Vortex Chain Reactor 8533 | -5/Warlord | Found Prototype Device 8533 | -5/Warlord | Identified Exp. Phase Shifter 8555 | -5/Warlord | Found Prototype Processor 8555 | -5/Warlord | Identified Exp. Core Analyzer 8605 | -5/Warlord | Warlord forces counterattacked 8634 | -5/Warlord | Spotted Executioner 8664 | -5/Warlord | Spotted Striker 8665 | -5/Warlord | P-70 Sage assimilated allied CL-4QA(g) 8668 | -5/Warlord | P-70 Sage assimilated allied 1J-IU7(g) 8673 | -5/Warlord | P-70 Sage assimilated allied I4-EWV(g) 8680 | -5/Warlord | Spotted Executioner 8727 | -5/Warlord | Discovered new exit (range 15) 8732 | -5/Warlord | Lost 6 allies 8748 | -5/Warlord | Identified exit to Proximity Caves 8749 | -5/Warlord | Entered Proximity Caves 8783 | -4/Proximity Caves | Attracted the attention of an 0b10 base 8819 | -4/Proximity Caves | Destroyed 7 combat bots 8969 | -4/Proximity Caves | Destroyed 10 combat bots 8997 | -4/Proximity Caves | Learned location of Testing (-2) 9018 | -4/Proximity Caves | Learned Research emergency access door positions 9223 | -4/Proximity Caves | Build established: Scavenger-Gunner 9268 | -4/Proximity Caves | Core integrity fell below 20% 9270 | -4/Proximity Caves | Attracted the attention of an 0b10 checkpoint 9452 | -4/Proximity Caves | Discovered new exit (range 5) 9475 | -4/Proximity Caves | Identified exit to Factory 9477 | -4/Proximity Caves | Entered Factory 9477 | -4/Factory | Evolved 2 slots: Utility x1, Weapon x1 9478 | -4/Factory | Identified exit to Upper Caves 9479 | -4/Factory | Identified exit to Research 9513 | -4/Factory | Identified Vortex Catalyst Activator 9754 | -4/Factory | Build established: Gunner 9764 | -4/Factory | Spotted B-86 Titan 9766 | -4/Factory | Destroyed B-86 Titan 9839 | -4/Factory | Entered Upper Caves 9852 | -4/Upper Caves | Lost 11 parts (2p2n2u5w) 9947 | -4/Upper Caves | Attracted the attention of an 0b10 outpost 10002 | -4/Upper Caves | Attracted the attention of an 0b10 checkpoint 10070 | -4/Upper Caves | Build established: Mutant 10163 | -4/Upper Caves | Discovered new exit (range 8) 10166 | -4/Upper Caves | Identified exit to Upper Caves 10279 | -4/Upper Caves | Entered another Upper Caves area 10299 | -4/Upper Caves | Discovered exit to Research (range 8) 10305 | -4/Upper Caves | Acquired the password to a Derelict Tinkerer's latest research 10312 | -4/Upper Caves | Found Prototype Special Weapon 10312 | -4/Upper Caves | Identified Molecular Deconstructor 10402 | -4/Upper Caves | Learned 4 Research zone layouts 10484 | -4/Upper Caves | Spotted B-86 Titan 10503 | -4/Upper Caves | Learned Research non-interactive machine intel 10617 | -4/Upper Caves | Caught by Unaware searching for contraband prototypes 10634 | -4/Upper Caves | Discovered new exit (range 10) 10641 | -4/Upper Caves | Identified exit to Zhirov 10642 | -4/Upper Caves | Entered Zhirov 10642 | -4/Zhirov | Discovered new exit (range 3) 10643 | -4/Zhirov | Identified exit to Proximity Caves 10651 | -4/Zhirov | Met Zhirov 10662 | -4/Zhirov | Learned location of Quarantine (-3) 10662 | -4/Zhirov | Learned location of Command (-1) 10670 | -4/Zhirov | Zhirov requested help retrieving the SGEMP Prototype 10684 | -4/Zhirov | Found Alien Artifact 10745 | -4/Zhirov | Found Alien Artifact 10768 | -4/Zhirov | Entered Proximity Caves 10791 | -3/Proximity Caves | Spotted B-86 Titan 10972 | -3/Proximity Caves | Attracted the attention of an 0b10 checkpoint 11006 | -3/Proximity Caves | Identified Transdimensional Reconstructor 11006 | -3/Proximity Caves | Warped through subspace 11007 | -3/Proximity Caves | Core integrity fell below 50% 11030 | -3/Proximity Caves | Lost 4 parts (3u1w) 11137 | -3/Proximity Caves | Lost 3 parts (1n2w) 11145 | -3/Proximity Caves | Core integrity fell below 20% 11191 | -3/Proximity Caves | Discovered exit to Research (range 6) 11195 | -3/Proximity Caves | Entered Research 11195 | -3/Research | Evolved 2 slots: Propulsion x1, Weapon x1 11199 | -3/Research | Loaded intel: 89 non-interactive machine locations 11221 | -3/Research | Identified exit to Research 11241 | -3/Research | Adv. Hacking Suite fried by hacking feedback 11267 | -3/Research | Incoming investigation squad redirected 11527 | -3/Research | Lost 3 parts (1p1u1w) 11531 | -3/Research | Spotted B-86 Titan 11580 | -3/Research | Spotted B-86 Titan 11630 | -3/Research | Core integrity fell below 50% 11665 | -3/Research | Identified exit to Quarantine 11678 | -3/Research | Entered Quarantine 11679 | -3/Quarantine | Maximum security lockdown engaged 11705 | -3/Quarantine | Identified Integrated Reactor 11705 | -3/Quarantine | Installed Integrated Reactor, increased core energy generation (+10) 11871 | -3/Quarantine | Core integrity fell below 20% 11895 | -3/Quarantine | Destroyed by H-77 Assassin with Coil Gun Last Messages --------------- I-47 Archangel unfolds itself. Penetrated by Slug. G-73 Enforcer destroyed. Acquired 53 matter. Acquired 67 matter. M-36 Artificer repairs G-73 Enforcer. Acquired 34 matter. The unstable cave ceiling collapses. Critical hit (Burn: +50). Lyr. Medium Armor Plating destroyed. M-36 Artificer repairs Phase Gun. Slug penetrates Wall. Adv. Launcher Guidance Computer destroyed. Mic. Antimatter Reactor destroyed. Slug penetrates Wall. ALERT: Assault forces dispatched. System corrupted: Matter fused (-7). >> DECODED: Blade Trap location. Acquired 116 matter. [Achievement: Tester] Map ----- +----------------------------------------------------+ | | | | | | | | | | | | | | | | | | | | | ??????# #######?????????? | | ?????## " " """ #?????????? | | ?????# = i " #?????????? | | ?????# [! /%* #?????????? | | ?????# ! ! = """" #?????????? | | ?????## =! """" ######?#??? | | ?????# """" # = ??? | | ?????## [ """" # "" ?? | | ??????# % %]= # """ "" ?? | | ??????## ! % # """ T" "# | | ???????## # h ##### """ "" "# | | ????????## # "" "# | | ?????????# % # """ T# | | ???####### g # """ "# | | ???# % bb # """ "# | | ???# @######### # "# | | ???# """ ######??# # """ ## | | ???# """ # ####i # """ #? | | ???# """ # # # """ #? | | ???# # # g # # | | ???# + !# g + !!! # | | ???# ##### # * # w# !!! # | | ???#?????#+###g#####g # !! # | | ?????????# l g # # # | | ?????????# """g g# ########## | | ?????????# "!" g/ #?????? | | ???xx????# """ # #????? | | ?????????# """"""" # #????? | | ?????????# """"""" # #????? | | ?????????# # #???? | | ?????????# # #???? | | ?????????####+###### ### | | ????????????# | | ????????????# | | ????????????# ^ ^ | | ????????????# ^ | | ????????????####+####+############# | | ???????????????# ## !! | | ???????????????# ## !! | | ???????????????# ## | +----------------------------------------------------+ Best States ------------- Heat Dissipation 109 Coolant Potential 80 Energy Generation 55 Energy Capacity 1100 Matter Stores 300 Matter Capacity 300 Sight Range 16 Terrain Scan Range 24 Terrain Scan Density 135 Jamming Range 14 Additional Mass Support 16 Base Temperature (-) 150 Corruption Containment 8 Armor Coverage 750 Resistance: TH 15 Propulsion Shielding 90 Weapon Shielding 66 Point Defense Rating 160 Melee Speed Boost 20 Phase Shifting 20 Evasion (%) 62 Targeting Accuracy 8 Melee Accuracy 6 Launcher Accuracy 40 Core Analysis 8 Armor Integrity Analysis 40 Offensive Hacking 14 Item Schematics ----------------- Combat Drone Bay | -6/Data Miner | Free Lgt. Regenerative Plating | -6/Data Miner | Free Cld. Nuclear Pulse Thruster | -6/Data Miner | Free Imp. Matter Compressor | -6/Data Miner | Free Enh. Coil Gun | -6/Data Miner | Free Imp. Gyrokinetic Inverter | -6/Data Miner | Free Adv. Trap Scanner | -6/Data Miner | Free Hvy. Disruptor Cannon | -6/Data Miner | Free Assault Drone Bay | -4/Zhirov | Free Exp. Heat Sink | -4/Zhirov | Free Exp. Optical Array | -4/Zhirov | Free Imp. Arc Thrower | -4/Zhirov | Free Robot Schematics ------------------ R-10 Processor | -6/Data Miner | Free B-48 Gladiator | -6/Data Miner | Free P-70 Sage | -6/Data Miner | Free S-27 Virus | -6/Data Miner | Free A-27 Freighter | -6/Data Miner | Free Fabricated ------------ Lgt. Quantum Reactor | x2 | -5/Factory | Preloaded Alien Tech Used ----------------- Dimensional Node Initializer Transdimensional Reconstructor Integrated Reactor Achievements -------------- Adventurer Alien Tech Explorer Ooh, Shiny! Reappropriation Subspace Traveler Tester The Science Guy Challenges ------------ None Game ------ Seed DerelictCoolantClaw Manual? 0 Play Time 03:09:26 Cumulative 60.1 hours Start 2024.04.24 @ 10:35:48 End 2024.04.25 @ 14:39:58 Sessions 5 Manual Loads 0 Difficulty Rogue Special Mode None Game No. 67 Rogue 58 Adventurer 9 Explorer 0 Win Type - Total 0 Types 0/0/0/0/0/0/0/0/0 Lore% 38 Gallery% 51 Achievement% 41 Wizard Run 0 Options --------- Layout 1 ASCII 0 Keyboard 0 Movement Numpad Keybinds 0 Fullscreen 1 Font 24/Smallcaps Map View 50x35 Zoom Use 0% Tactical HUD 0 Map Filters NONE Filters NONE Steam 1 RUN: 6dfadca2-75a9-45e5-b847-ef63cdc07d60